bitfinex-derivatives/quotes_SOLF0:USTF0_20250507
["timestamp","ask_amount","ask_price","bid_price","bid_amount"]
[1746609357947,6.7541,148.07,148.06,4.60018899]
[1746609360350,4.60018899,148.1,148.03,28.58]
[1746609360646,4.60018899,148.08,148.03,28.58]
[1746609361649,6.7552,148.04,148.03,28.58]
[1746609363349,6.755,148.05,148.03,35.3357]
[1746609364754,6.7552,148.04,148.03,28.58]
[1746609373555,6.7569,148.01,148.0,28.54]
[1746609376651,6.7585,147.97,147.95,6.7591]
[1746609376857,6.7585,147.97,147.96,28.54]
[1746609386461,6.7601,147.94,147.93,28.52]
[1746609396276,6.7615,147.91,147.9,28.54]
[1746609401784,20.70903412,147.95,147.87,28.54]
[1746609401984,7.18993412,147.95,147.87,28.54]
[1746609402382,6.7624,147.89,147.87,28.54]
[1746609402579,6.0814,147.96,147.87,35.3028]
[1746609403078,6.0814,147.96,147.87,28.54]
[1746609403477,6.7604,147.93,147.87,28.54]
[1746609403684,6.7604,147.93,147.9,6.7612]
[1746609405385,6.7608,147.92,147.9,6.7612]
[1746609405685,6.7608,147.92,147.89,6.7618]
[1746609406280,6.7613,147.91,147.89,6.7618]
[1746609407683,6.7613,147.91,147.88,6.7623]
[1746609409584,6.7616,147.9,147.88,6.7623]
[1746609409786,6.7616,147.9,147.87,35.3028]
[1746609410086,6.0814,147.96,147.87,28.54]
[1746609411290,6.7625,147.88,147.87,28.54]
[1746609413491,6.7625,147.88,147.86,6.7634]
[1746609415199,28.52,147.93,147.85,35.2839]
[1746609415796,6.7631,147.87,147.85,35.2839]
[1746609419000,6.7631,147.87,147.85,28.52]
[1746609419394,6.7634,147.86,147.85,28.52]
[1746609427299,6.7642,147.85,147.82,35.2851]
[1746609428399,6.7642,147.85,147.82,6.7651]
[1746609428703,4.61248298,147.87,147.82,28.54]
[1746609429098,6.7648,147.83,147.82,28.54]
[1746609430905,6.7657,147.81,147.79,35.3065]
[1746609431604,13.5261,147.87,147.79,28.54]
[1746609431904,7.20829553,147.86,147.79,28.54]
[1746609432106,6.7662,147.8,147.79,28.54]
[1746609435208,6.766,147.81,147.79,28.54]
[1746609436708,6.766,147.81,147.79,35.3066]
[1746609437009,6.766,147.81,147.79,28.54]
[1746609437411,6.7662,147.8,147.79,28.54]
[1746609439106,6.7669,147.79,147.76,6.7679]
[1746609439307,28.54,147.82,147.74,30.6833]
[1746609439610,28.54,147.82,147.74,28.54]
[1746609439809,7.20829553,147.8,147.74,28.54]
[1746609440207,6.7697,147.73,147.71,28.54]
[1746609440507,6.2662,147.79,147.71,28.54]
[1746609440812,6.7685,147.75,147.71,28.54]
[1746609441112,6.2662,147.79,147.71,28.54]
[1746609441305,2.0378,147.79,147.71,28.54]
[1746609441507,7.20829553,147.81,147.71,28.54]
[1746609441913,6.7678,147.77,147.73,6.7691]
[1746609442406,6.7672,147.78,147.71,28.54]
[1746609442706,2.0237,147.8,147.71,28.54]
[1746609442913,11.43669553,147.81,147.71,28.54]
[1746609443210,11.43669553,147.81,147.76,6.7677]
[1746609443410,11.43669553,147.81,147.72,2.1539]
[1746609443710,6.7674,147.78,147.75,6.7683]
[1746609444412,6.7668,147.79,147.76,6.7679]
[1746609444714,11.43669553,147.81,147.72,2.1539]
[1746609445117,6.7683,147.76,147.73,6.7692]
[1746609445613,6.7685,147.75,147.72,6.7696]
[1746609445909,2.1145,147.8,147.71,28.54]
[1746609446106,6.7683,147.76,147.73,6.7692]
[1746609446613,6.7686,147.75,147.72,6.7697]
[1746609447412,2.1145,147.8,147.71,35.3101]
[1746609447614,7.20829553,147.78,147.71,35.3101]
[1746609447816,35.72829553,147.78,147.71,35.3101]
[1746609448113,6.7695,147.73,147.71,35.3101]
[1746609448311,35.72829553,147.78,147.68,39.92379553]
[1746609448515,35.72829553,147.78,147.68,32.7155]
[1746609448516,6.7704,147.71,147.68,32.7155]
[1746609448814,6.7704,147.71,147.68,30.6654]
[1746609449016,6.7704,147.71,147.69,6.7712]
[1746609449814,6.7704,147.71,147.68,35.2915]
[1746609451015,7.20829553,147.75,147.68,28.52]
[1746609451511,6.7706,147.71,147.68,35.2914]
[1746609452520,7.20829553,147.77,147.7,6.7707]
[1746609452814,7.20829553,147.77,147.68,28.52]
[1746609453213,6.7696,147.73,147.68,28.52]
[1746609453419,7.20829553,147.77,147.68,28.52]
[1746609453819,6.77,147.72,147.68,35.2914]
[1746609456419,6.77,147.72,147.69,6.7711]
[1746609456725,7.20829553,147.77,147.68,28.52]
[1746609457024,6.7686,147.75,147.72,6.7695]
[1746609458222,7.20829553,147.77,147.72,6.7695]
[1746609458521,28.52,147.78,147.71,6.7701]
[1746609459324,6.7692,147.74,147.71,6.7701]
[1746609459525,28.52,147.78,147.7,6.7706]
[1746609460131,28.52,147.78,147.71,6.7702]
[1746609460334,28.52,147.78,147.7,2.0162]
[1746609460629,28.52,147.78,147.72,6.7695]
[1746609460821,28.52,147.78,147.72,35.3095]
[1746609461430,6.7687,147.75,147.72,35.3095]
[1746609461831,28.52,147.78,147.72,35.3095]
[1746609462530,6.7687,147.75,147.72,35.3095]
[1746609464332,6.7687,147.75,147.73,6.7693]
[1746609464520,6.7687,147.75,147.72,28.54]
[1746609464830,4.48524214,147.74,147.73,6.7694]
[1746609465027,4.48524214,147.74,147.72,28.54]
[1746609465220,4.48524214,147.73,147.72,28.54]
[1746609465532,4.48524214,147.73,147.72,35.3096]
[1746609468536,42.0672,147.86,147.72,42.50829553]
[1746609468737,6.7664,147.8,147.72,35.74829553]
[1746609469036,7.20829553,147.83,147.72,28.54]
[1746609469537,30.6713,147.82,147.74,6.7685]
[1746609469731,32.8254,147.82,147.74,6.7685]
[1746609469929,6.7678,147.77,147.74,6.7685]
[1746609470837,34.8625,147.82,147.74,6.7685]
[1746609472538,6.7682,147.76,147.74,6.7685]
[1746609472738,7.20829553,147.8,147.72,28.54]
[1746609473238,6.769,147.74,147.72,35.3096]
[1746609473540,7.20829553,147.8,147.72,28.54]
[1746609474641,6.7693,147.74,147.72,28.54]
[1746609474843,7.20829553,147.77,147.69,28.52]
[1746609475141,6.7696,147.73,147.69,28.52]
[1746609475439,6.7696,147.73,147.7,6.7705]
[1746609477543,6.7699,147.72,147.7,6.7705]
[1746609478345,6.7696,147.73,147.71,6.7703]
[1746609479744,28.52,147.78,147.72,6.7695]
[1746609480845,6.7678,147.77,147.73,28.52]
[1746609481044,6.7678,147.77,147.74,28.52]
[1746609481441,6.7678,147.77,147.75,6.7684]
[1746609481941,34.8425,147.82,147.77,6.7676]
[1746609482145,4.2854,147.82,147.74,35.72829553]
[1746609482642,2.1112,147.87,147.77,7.20829553]
[1746609482844,2.1112,147.87,147.78,28.52]
[1746609483045,4.2181,147.88,147.8,7.20829553]
[1746609483641,6.7637,147.86,147.83,6.7645]
[1746609483836,6.7637,147.86,147.83,35.2845]
[1746609485351,6.7637,147.86,147.84,6.7643]
[1746609485651,6.7637,147.86,147.83,28.52]
[1746609485947,6.7637,147.86,147.83,35.2845]
[1746609488551,6.7637,147.86,147.84,6.7644]
[1746609488949,6.7637,147.86,147.83,28.52]
[1746609489246,6.7637,147.86,147.83,35.2845]
[1746609491340,6.7639,147.85,147.83,35.2845]
[1746609492452,6.7639,147.85,147.83,28.52]
[1746609497157,6.7644,147.84,147.83,28.52]
[1746609497858,7.20829553,147.86,147.8,28.5]
[1746609498359,6.766,147.81,147.8,28.5]
[1746609498755,1.9964,147.87,147.81,6.7656]
[1746609498756,6.7647,147.84,147.81,6.7656]
[1746609498958,6.7647,147.84,147.8,28.5]
[1746609500165,6.7647,147.84,147.81,6.7656]
[1746609503161,6.7649,147.83,147.81,6.7656]
[1746609503361,1.9964,147.87,147.8,35.2661]
[1746609503562,6.7656,147.82,147.8,28.5]
[1746609506065,6.7657,147.81,147.8,28.5]
[1746609512072,6.7668,147.79,147.77,35.3271]
[1746609513167,2.0087,147.86,147.77,35.3271]
[1746609513373,2.0087,147.86,147.77,28.56]
[1746609513975,2.0087,147.86,147.79,6.7666]
[1746609514868,6.7655,147.82,147.79,6.7666]
[1746609515770,6.7646,147.84,147.77,28.56]
[1746609515966,2.0087,147.86,147.77,35.76829553]
[1746609516173,1.9964,147.87,147.8,7.20829553]
[1746609516371,6.7637,147.86,147.83,6.7646]
[1746609516573,1.9964,147.87,147.83,6.7646]
[1746609517072,6.7635,147.86,147.83,6.7646]
[1746609517274,1.9964,147.87,147.83,6.7646]
[1746609517675,6.7642,147.85,147.82,6.7651]
[1746609518880,1.9964,147.87,147.81,35.3255]
[1746609519373,6.7647,147.84,147.81,35.3255]
[1746609519674,1.9964,147.87,147.81,35.3255]
[1746609520275,1.9964,147.87,147.81,28.56]
[1746609520571,6.7651,147.83,147.81,28.56]
[1746609520776,1.9964,147.87,147.81,28.56]
[1746609521075,6.7648,147.84,147.81,35.3255]
[1746609521278,1.9964,147.87,147.81,28.56]
[1746609521678,6.765,147.83,147.81,28.56]
[1746609522979,6.765,147.83,147.81,35.3257]
[1746609524381,6.7653,147.82,147.81,28.56]
[1746609524583,1.9964,147.87,147.81,28.56]
[1746609525278,6.7646,147.84,147.81,35.3254]
[1746609525581,1.9964,147.87,147.81,35.3254]
[1746609526781,6.7647,147.84,147.81,35.3254]
[1746609527182,1.9964,147.87,147.81,35.3254]
[1746609527783,6.7646,147.84,147.81,35.3254]
[1746609529585,6.7649,147.83,147.81,35.3254]
[1746609530389,6.7653,147.82,147.81,28.56]
[1746609531585,6.7651,147.83,147.81,28.56]
[1746609532386,6.7653,147.82,147.81,28.56]
[1746609535687,28.52,147.86,147.78,28.52]
[1746609536087,2.1839,147.85,147.78,28.52]
[1746609536590,6.7665,147.8,147.78,28.52]
[1746609538690,6.7666,147.79,147.78,28.52]
[1746609542894,2.1839,147.85,147.78,28.52]
[1746609543387,2.1839,147.85,147.78,35.2868]
[1746609544094,6.7663,147.8,147.78,35.2868]
[1746609545289,6.7663,147.8,147.78,28.52]
[1746609545895,6.7663,147.8,147.78,35.287]
[1746609546894,6.7663,147.8,147.78,28.52]
[1746609547592,6.7666,147.79,147.78,28.52]
[1746609555003,6.7679,147.77,147.75,28.52]
[1746609556503,6.7679,147.77,147.75,35.2883]
[1746609559704,6.768,147.76,147.75,35.2883]
[1746609560303,6.768,147.76,147.75,28.52]
[1746609561793,6.7678,147.77,147.75,35.2885]
[1746609564405,6.7678,147.77,147.75,28.52]
[1746609564608,6.768,147.76,147.75,28.52]
[1746609565002,30.5261,147.82,147.72,6.7695]
[1746609565209,7.20829553,147.81,147.72,28.52]
[1746609565702,1.9951,147.8,147.72,28.52]
[1746609565901,15.528,147.8,147.72,28.52]
[1746609566296,6.7673,147.78,147.72,28.52]
[1746609566502,15.528,147.8,147.72,28.52]
[1746609567109,6.7694,147.73,147.72,28.52]
[1746609568613,6.7691,147.74,147.72,28.52]
[1746609568913,28.52,147.78,147.72,28.52]
[1746609569112,6.7694,147.73,147.72,28.52]
[1746609569714,6.7704,147.71,147.69,619.931]
[1746609570213,6.7704,147.71,147.69,35.291]
[1746609570815,6.7701,147.72,147.69,35.291]
[1746609571119,4.091,147.77,147.69,28.52]
[1746609572011,4.46329869,147.76,147.69,28.52]
[1746609572415,2.1794,147.75,147.69,28.52]
[1746609572617,4.46329869,147.74,147.69,28.52]
[1746609572914,4.46329869,147.73,147.69,28.52]
[1746609573312,6.7715,147.69,147.67,6.7721]
[1746609573515,6.7715,147.69,147.66,28.52]
[1746609573710,4.46329869,147.68,147.66,28.52]
[1746609574111,4.46329869,147.68,147.67,6.7721]
[1746609577618,11.23499869,147.68,147.66,35.2926]
[1746609578014,4.46329869,147.67,147.66,35.2926]
[1746609578418,11.23539869,147.67,147.66,28.52]
[1746609578618,4.46329869,147.67,147.66,28.52]
[1746609579017,11.23539869,147.67,147.66,28.52]
[1746609579218,4.46329869,147.67,147.66,28.52]
[1746609579521,4.46329869,147.67,147.66,35.2926]
[1746609580018,11.23539869,147.67,147.66,28.52]
[1746609580918,6.7728,147.66,147.63,28.54]
[1746609581117,4.46329869,147.65,147.63,28.54]
[1746609581320,4.46329869,147.65,147.63,35.3136]
[1746609581618,4.46329869,147.64,147.63,35.3136]
[1746609583422,4.46329869,147.64,147.63,28.54]
[1746609584121,11.23679869,147.64,147.63,28.54]
[1746609585823,4.46329869,147.64,147.63,28.54]
[1746609587524,4.46329869,147.64,147.63,35.314]
[1746609589625,6.7724,147.67,147.63,28.54]
[1746609590026,4.4482005,147.66,147.63,28.54]
[1746609590226,11.2209005,147.66,147.64,6.7732]
[1746609590419,4.4482005,147.66,147.64,6.7732]
[1746609590620,4.4482005,147.65,147.64,6.7732]
[1746609592326,4.4482005,147.65,147.63,35.3138]
[1746609592820,6.7727,147.66,147.63,35.3138]
[1746609593928,4.45078801,147.65,147.63,35.3138]
[1746609594224,4.45078801,147.65,147.64,6.7735]
[1746609606035,4.45078801,147.65,147.64,11.39778615]
[1746609606440,6.771,147.7,147.68,6.7716]
[1746609606830,8.79728615,147.71,147.67,28.54]
[1746609607135,6.7713,147.69,147.67,35.3119]
[1746609607636,6.7713,147.69,147.68,6.7717]
[1746609607837,6.7713,147.69,147.67,28.54]
[1746609608136,6.771,147.7,147.67,28.54]
[1746609608332,6.771,147.7,147.68,6.7717]
[1746609608533,8.79728615,147.71,147.67,28.54]
[1746609608734,6.7713,147.69,147.67,28.54]
[1746609608946,8.79728615,147.71,147.68,6.7717]
[1746609609227,6.7704,147.71,147.68,4.62428615]
[1746609609432,33.16428615,147.75,147.68,4.62428615]
[1746609609837,4.62428615,147.75,147.7,4.62428615]
[1746609610436,6.7693,147.74,147.71,6.77]
[1746609610937,6.7693,147.74,147.71,28.52]
[1746609611137,6.7688,147.75,147.72,6.7695]
[1746609611334,4.1282,147.77,147.71,28.52]
[1746609612338,6.7681,147.76,147.71,28.52]
[1746609613038,6.7681,147.76,147.74,6.7687]
[1746609613335,4.1282,147.77,147.71,28.52]
[1746609613637,6.7683,147.76,147.74,6.7687]
[1746609614638,6.7685,147.75,147.71,28.52]
[1746609615240,6.7685,147.75,147.72,6.7698]
[1746609616536,6.769,147.74,147.72,6.7698]
[1746609618040,6.7687,147.75,147.72,6.7698]
[1746609618229,6.7687,147.75,147.73,6.7694]
[1746609618939,4.38771826,147.74,147.73,6.7694]
[1746609619140,4.38771826,147.74,147.71,28.52]
[1746609619540,4.38771826,147.73,147.71,28.52]
[1746609620235,4.38771826,147.72,147.71,35.2903]
[1746609621241,35.7365246,147.81,147.75,6.7682]
[1746609621437,6.7674,147.78,147.75,28.52]
[1746609621739,6.7674,147.78,147.76,6.7677]
[1746609621938,6.7666,147.8,147.75,28.52]
[1746609622134,7.2165246,147.84,147.75,28.52]
[1746609622440,6.7665,147.8,147.77,6.7673]
[1746609622640,7.2165246,147.84,147.77,6.7673]
[1746609623444,6.767,147.79,147.77,6.7673]
[1746609630954,6.767,147.79,147.76,6.7678]
[1746609631554,6.767,147.79,147.77,6.7676]
[1746609632047,7.2165246,147.84,147.78,6.767]
[1746609632253,7.2165246,147.84,147.79,28.5]
[1746609632455,28.52,147.85,147.79,28.5]
[1746609632950,6.7663,147.8,147.79,28.5]
[1746609634259,6.7678,147.77,147.76,28.5]
[1746609641864,6.7673,147.78,147.76,35.268]
[1746609642161,2.086,147.8,147.76,28.5]
[1746609643058,28.52,147.85,147.76,28.5]
[1746609643257,2.0722,147.84,147.76,28.5]
[1746609643555,6.7665,147.8,147.78,6.767]
[1746609648364,6.7665,147.8,147.77,6.7674]
[1746609649768,2.0722,147.84,147.76,28.5]
[1746609650564,6.7655,147.82,147.8,6.7661]
[1746609650763,6.7655,147.82,147.76,28.5]
[1746609651270,2.0722,147.84,147.76,28.5]
[1746609651966,6.7669,147.79,147.76,35.2677]
[1746609653070,6.7669,147.79,147.77,6.7675]
[1746609653871,6.7673,147.78,147.76,35.2678]
[1746609654968,6.7676,147.77,147.76,28.5]
[1746609656171,6.7674,147.78,147.76,28.5]
[1746609656369,6.7674,147.78,147.76,35.2679]
[1746609656571,6.7674,147.78,147.76,28.5]
[1746609656775,6.7676,147.77,147.76,28.5]
[1746609657575,6.7673,147.78,147.76,28.5]
[1746609657776,6.7673,147.78,147.76,35.2678]
[1746609657970,6.7673,147.78,147.76,28.5]
[1746609658474,4.61709393,147.81,147.76,28.5]
[1746609659174,6.7674,147.78,147.76,28.5]
[1746609661082,6.7676,147.77,147.76,28.5]
[1746609663379,6.7674,147.78,147.76,35.268]
[1746609664274,4.55874005,147.77,147.76,28.5]
[1746609664880,4.55874005,147.77,147.76,35.268]
[1746609665178,4.55874005,147.77,147.76,39.88509393]
[1746609669181,4.55874005,147.77,147.76,28.5]
[1746609669980,4.55874005,147.77,147.76,35.268]
[1746609691700,11.32634005,147.77,147.76,28.5]
[1746609691900,4.55874005,147.77,147.73,28.48]
[1746609692096,9.17819737,147.77,147.73,28.48]
[1746609692290,4.55874005,147.76,147.73,28.48]
[1746609692702,4.55874005,147.75,147.73,28.48]
[1746609692900,6.7691,147.74,147.73,28.48]
[1746609693101,4.55874005,147.74,147.71,28.48]
[1746609693605,11.32844005,147.73,147.71,28.48]
[1746609693904,4.55874005,147.72,147.71,28.48]
[1746609694908,4.55874005,147.72,147.71,35.2503]
[1746609695408,4.55874005,147.72,147.71,28.48]
[1746609696312,4.55874005,147.72,147.71,39.86975732]
[1746609696611,2.122,147.79,147.71,33.09945732]
[1746609696805,1.9963,147.8,147.78,6.7668]
[1746609697112,4.61945732,147.83,147.77,33.09945732]
[1746609697411,6.7655,147.82,147.79,6.7663]
[1746609697909,6.7658,147.81,147.79,6.7663]
[1746609698412,6.7658,147.81,147.78,6.7669]
[1746609698605,6.7658,147.81,147.77,33.09945732]
[1746609698911,6.7658,147.81,147.79,6.7666]
[1746609699208,6.7658,147.81,147.77,33.09945732]
[1746609699710,6.7658,147.81,147.78,6.7668]
[1746609700012,6.7658,147.81,147.77,28.48]
[1746609700610,11.065,147.83,147.8,6.7659]
[1746609700911,4.3,147.83,147.77,28.48]
[1746609701512,6.7656,147.82,147.79,6.7664]
[1746609701911,6.7656,147.82,147.77,28.48]
[1746609702111,11.065,147.83,147.77,28.48]
[1746609702606,11.065,147.83,147.8,6.7658]
[1746609702807,8.9039,147.83,147.8,6.7658]
[1746609703209,6.765,147.83,147.8,6.7658]
[1746609703810,6.765,147.83,147.81,28.48]
[1746609705315,6.7653,147.82,147.81,28.48]
[1746609709416,6.7651,147.83,147.81,28.48]
[1746609710321,6.7653,147.82,147.81,28.48]
[1746609717124,6.7651,147.83,147.81,28.48]
[1746609718328,6.7651,147.83,147.81,35.2457]
[1746609718528,6.7651,147.83,147.81,28.48]
[1746609719228,2.0094,147.85,147.81,28.48]
[1746609720133,6.7653,147.82,147.81,28.48]
[1746609721331,2.0094,147.85,147.81,35.2457]
[1746609721530,2.0156,147.87,147.81,35.2457]
[1746609721732,2.0156,147.87,147.82,6.7653]
[1746609722033,2.0156,147.87,147.81,28.48]
[1746609723035,6.7642,147.85,147.81,28.48]
[1746609723532,6.7646,147.84,147.82,6.765]
[1746609726840,6.7648,147.83,147.81,35.2455]
[1746609727236,2.0156,147.87,147.81,28.48]
[1746609727436,6.7647,147.84,147.82,6.7653]
[1746609727634,2.0156,147.87,147.82,6.7653]
[1746609727937,6.7648,147.83,147.81,35.2455]
[1746609729037,6.7653,147.82,147.81,28.48]
[1746609729538,6.765,147.83,147.81,35.2457]
[1746609730036,2.0156,147.87,147.82,6.7653]
[1746609731237,6.7643,147.85,147.82,6.7653]
[1746609731441,2.0156,147.87,147.82,6.7653]
[1746609732228,6.7644,147.84,147.82,6.7653]
[1746609733039,6.7641,147.85,147.83,6.7648]
[1746609733434,6.7641,147.85,147.81,28.48]
[1746609733639,6.7641,147.85,147.82,6.7652]
[1746609734944,6.7644,147.84,147.82,6.7652]
[1746609746454,6.7648,147.83,147.81,35.2456]
[1746609746653,4.61251272,147.84,147.81,28.48]
[1746609746949,4.61251272,147.84,147.78,6.7669]
[1746609747250,4.61251272,147.84,147.78,35.2269]
[1746609747453,6.7656,147.82,147.79,6.7663]
[1746609747854,4.61251272,147.84,147.79,6.7663]
[1746609748153,6.7658,147.81,147.79,6.7663]
[1746609748955,6.7662,147.8,147.78,39.83941272]
[1746609749255,11.34413363,147.8,147.78,28.46]
[1746609749555,11.34453363,147.79,147.78,28.46]
[1746609750554,4.57793363,147.79,147.78,28.46]
[1746609750946,4.57793363,147.79,147.78,35.2271]
[1746609752061,4.57793363,147.79,147.78,28.46]
[1746609752966,4.57793363,147.79,147.78,35.2271]
[1746609753369,4.57793363,147.79,147.78,28.46]
[1746609753661,11.34453363,147.79,147.78,28.46]
[1746609755162,4.57793363,147.79,147.75,612.94]
[1746609755761,4.57793363,147.78,147.75,612.94]
[1746609756268,4.57793363,147.77,147.75,612.94]
[1746609756568,11.34573363,147.77,147.75,28.44]
[1746609756768,4.57793363,147.76,147.75,28.44]
[1746609758063,4.57793363,147.76,147.75,35.2085]
[1746609760172,11.34593363,147.76,147.75,28.44]
[1746609776278,4.57793363,147.76,147.75,39.82605083]
[1746609779582,11.34593363,147.76,147.75,39.82605083]
[1746609779778,11.34593363,147.76,147.75,33.05755083]
[1746609782083,11.34593363,147.76,147.75,28.44]
[1746609786184,4.57793363,147.76,147.75,28.44]
[1746609787790,11.34593363,147.76,147.75,28.44]
[1746609790498,6.7691,147.74,147.72,35.2297]
[1746609791102,6.7691,147.74,147.72,28.46]
[1746609791308,4.57793363,147.73,147.72,28.46]
[1746609792297,11.34733363,147.73,147.72,28.46]
[1746609794303,11.34733363,147.73,147.7,6.7706]
[1746609794499,4.57793363,147.73,147.65,60.18490166]
[1746609794698,4.57793363,147.72,147.65,60.18490166]
[1746609795200,11.34853363,147.71,147.68,6.7715]
[1746609795406,4.57793363,147.71,147.68,6.7715]
[1746609795601,4.57793363,147.7,147.68,6.7715]
[1746609796000,4.57793363,147.7,147.67,6.7719]
[1746609796298,4.57793363,147.69,147.67,6.7719]
[1746609796499,4.57793363,147.69,147.65,60.18490166]
[1746609796699,6.7701,147.72,147.68,6.7717]
[1746609797012,28.46,147.75,147.68,6.7717]
[1746609797013,6.7704,147.71,147.68,6.7717]
[1746609797700,4.5933668,147.7,147.68,6.7717]
[1746609798296,4.5933668,147.69,147.68,6.7717]
[1746609800198,4.0674,147.76,147.67,7.21488446]
[1746609800397,4.2184,147.81,147.7,7.21488446]
[1746609800599,4.2184,147.81,147.71,28.46]
[1746609800800,4.2184,147.81,147.76,6.7677]
[1746609801092,6.7674,147.78,147.75,28.46]
[1746609801504,6.7674,147.78,147.75,35.2282]
[1746609802606,6.7676,147.77,147.75,35.2282]
[1746609803704,6.7673,147.78,147.75,35.2282]
[1746609804006,6.7673,147.78,147.76,6.768]
[1746609804409,6.7673,147.78,147.75,35.2282]
[1746609805708,4.2184,147.81,147.75,28.46]
[1746609806310,6.768,147.76,147.75,28.46]
[1746609808008,4.2184,147.81,147.75,28.46]
[1746609808710,6.7677,147.77,147.75,35.2284]
[1746609809419,6.7673,147.78,147.75,35.2284]
[1746609810312,6.7676,147.77,147.75,35.2284]
[1746609811021,6.7676,147.77,147.75,28.46]
[1746609812417,4.48587168,147.76,147.75,28.46]
[1746609812719,11.25387168,147.76,147.75,28.46]
[1746609813019,4.48587168,147.76,147.72,28.44]
[1746609813418,6.7692,147.74,147.72,28.44]
[1746609813922,4.48587168,147.73,147.72,28.44]
[1746609815021,4.48587168,147.73,147.72,35.2098]
[1746609818924,11.25527168,147.73,147.72,28.44]
[1746609819126,4.48587168,147.73,147.72,28.44]
[1746609822132,4.48587168,147.73,147.72,35.2099]
[1746609830234,4.48587168,147.73,147.72,28.44]
[1746609831138,4.48587168,147.73,147.72,35.2099]
[1746609831534,4.48587168,147.73,147.72,28.44]
[1746609832637,4.48587168,147.73,147.72,35.2099]
[1746609833335,4.48587168,147.73,147.72,28.44]
[1746609833637,11.25527168,147.73,147.72,28.44]
[1746609834351,4.48587168,147.73,147.72,28.44]
[1746609835240,4.48587168,147.73,147.72,35.2099]
[1746609837941,11.25527168,147.73,147.72,28.44]
[1746609840943,11.25527168,147.73,147.72,35.2099]
[1746609841743,4.48587168,147.73,147.72,35.2099]
[1746609844544,4.48587168,147.73,147.72,28.44]
[1746609845045,11.25527168,147.73,147.72,28.44]
[1746609846447,4.48587168,147.73,147.72,28.44]
[1746609846845,4.48587168,147.73,147.72,35.2099]
[1746609849141,6.7687,147.75,147.72,35.2099]
[1746609849347,6.7687,147.75,147.73,6.7694]
[1746609849748,6.7689,147.74,147.72,35.2096]
[1746609850140,2.0377,147.78,147.72,28.44]
[1746609850349,6.7693,147.74,147.72,35.2098]
[1746609851074,11.26495208,147.73,147.72,28.44]
[1746609854946,11.26495208,147.73,147.72,35.2099]
[1746609856453,11.26495208,147.73,147.72,28.44]
[1746609870461,4.49555208,147.73,147.72,28.44]
[1746609870660,4.49555208,147.73,147.72,33.05764991]
[1746609870860,4.49555208,147.73,147.72,33.05791424]
[1746609871163,4.49555208,147.73,147.72,33.05793092]
[1746609871960,4.49555208,147.73,147.72,39.82783092]
[1746609886166,4.49555208,147.73,147.72,28.44]
[1746609886568,11.26495208,147.73,147.72,28.44]
[1746609893209,11.26495208,147.73,147.69,6.771]
[1746609893211,6.7704,147.71,147.69,35.191]
[1746609893887,4.49555208,147.7,147.69,35.191]
[1746609894379,11.26635208,147.7,147.69,28.42]
[1746609894975,11.26635208,147.7,147.69,35.1912]
[1746609895185,4.49555208,147.7,147.69,35.1912]
[1746609900388,2.1184,147.75,147.69,28.42]
[1746609900586,2.0377,147.78,147.73,4.61793092]
[1746609900788,6.7678,147.77,147.73,33.03793092]
[1746609900988,6.7678,147.77,147.74,6.7688]